[Event "Titled Tuesday Blitz October 12 2021"]
[White "Yeletsky, Ivan"]
[Black "Rozman, Levy"]
[WhiteFideId "24180327"]
[BlackFideId "2039877"]
[WhiteElo "2352"]
[BlackElo "2376"]
[Result "1/2-1/2"]
[Round "10"]
[TimeControl "180+1"]
[Date "2021.10.12"]
[WhiteClock "0:00:05"]
[BlackClock "0:00:16"]

1. e4 {[%clk 0:03:00]}  c6 {[%clk 0:02:55]} 2. d3 {[%clk 0:02:51]}  d5 {[%clk 0:02:53]} 3. Bf4 {[%clk 0:02:52]}  g6 {[%clk 0:02:47]} 4. c3 {[%clk 0:02:48]}  Bg7 {[%clk 0:02:42]} 5. Nf3 {[%clk 0:02:48]}  Bg4 {[%clk 0:02:39]} 6. Be2 {[%clk 0:02:43]}  Nf6 {[%clk 0:02:26]} 7. Nbd2 {[%clk 0:02:42]}  O-O {[%clk 0:02:23]} 8. h3 {[%clk 0:02:41]}  Bxf3 {[%clk 0:02:23]} 9. Bxf3 {[%clk 0:02:41]}  Nbd7 {[%clk 0:02:20]} 10. O-O {[%clk 0:02:36]}  e6 {[%clk 0:02:19]} 11. Qe2 {[%clk 0:02:18]}  a5 {[%clk 0:02:18]} 12. Rfe1 {[%clk 0:02:11]}  a4 {[%clk 0:02:18]} 13. a3 {[%clk 0:02:06]}  Qb6 {[%clk 0:02:10]} 14. Rab1 {[%clk 0:01:55]}  Qa6 {[%clk 0:02:00]} 15. d4 {[%clk 0:01:43]}  Qxe2 {[%clk 0:01:57]} 16. Rxe2 {[%clk 0:01:43]}  dxe4 {[%clk 0:01:55]} 17. Nxe4 {[%clk 0:01:43]}  Nxe4 {[%clk 0:01:53]} 18. Rxe4 {[%clk 0:01:44]}  Nf6 {[%clk 0:01:53]} 19. Re2 {[%clk 0:01:42]}  Nd5 {[%clk 0:01:53]} 20. Bd2 {[%clk 0:01:41]}  b5 {[%clk 0:01:50]} 21. Rbe1 {[%clk 0:01:39]}  Rfd8 {[%clk 0:01:48]} 22. h4 {[%clk 0:01:39]}  h5 {[%clk 0:01:46]} 23. g3 {[%clk 0:01:38]}  Rac8 {[%clk 0:01:45]} 24. Bg5 {[%clk 0:01:38]}  Rd7 {[%clk 0:01:43]} 25. Kg2 {[%clk 0:01:37]}  Kh7 {[%clk 0:01:38]} 26. Rh1 {[%clk 0:01:35]}  Bh6 {[%clk 0:01:37]} 27. Rhe1 {[%clk 0:01:20]}  Bxg5 {[%clk 0:01:27]} 28. hxg5 {[%clk 0:01:21]}  Kg7 {[%clk 0:01:27]} 29. Rc2 {[%clk 0:01:18]}  c5 {[%clk 0:01:21]} 30. dxc5 {[%clk 0:01:14]}  Rxc5 {[%clk 0:01:22]} 31. Rd1 {[%clk 0:01:14]}  Nb6 {[%clk 0:01:19]} 32. Rxd7 {[%clk 0:01:05]}  Nxd7 {[%clk 0:01:19]} 33. Rd2 {[%clk 0:01:03]}  Ne5 {[%clk 0:01:18]} 34. Be2 {[%clk 0:01:01]}  Kf8 {[%clk 0:01:00]} 35. Rd8+ {[%clk 0:00:54]}  Ke7 {[%clk 0:00:58]} 36. Rb8 {[%clk 0:00:54]}  Nc4 {[%clk 0:00:57]} 37. Rb7+ {[%clk 0:00:53]}  Kd6 {[%clk 0:00:45]} 38. Bxc4 {[%clk 0:00:46]}  bxc4 {[%clk 0:00:46]} 39. Rxf7 {[%clk 0:00:20]}  Rxg5 {[%clk 0:00:45]} 40. Ra7 {[%clk 0:00:17]}  Rb5 {[%clk 0:00:35]} 41. Rxa4 {[%clk 0:00:18]}  Rxb2 {[%clk 0:00:33]} 42. Rxc4 {[%clk 0:00:18]}  Ra2 {[%clk 0:00:33]} 43. a4 {[%clk 0:00:18]}  Ra3 {[%clk 0:00:33]} 44. Kf3 {[%clk 0:00:17]}  Kd5 {[%clk 0:00:32]} 45. Rd4+ {[%clk 0:00:17]}  Ke5 {[%clk 0:00:30]} 46. Re4+ {[%clk 0:00:13]}  Kd5 {[%clk 0:00:28]} 47. Rb4 {[%clk 0:00:06]}  Rxc3+ {[%clk 0:00:21]} 48. Kf4 {[%clk 0:00:07]}  e5+ {[%clk 0:00:17]} 49. Kg5 {[%clk 0:00:07]}  Rf3 {[%clk 0:00:18]} 50. Rb2 {[%clk 0:00:06]}  Ra3 {[%clk 0:00:18]} 51. Kxg6 {[%clk 0:00:06]}  Rxa4 {[%clk 0:00:17]} 52. Kxh5 {[%clk 0:00:06]}  Ke4 {[%clk 0:00:17]} 53. Kg5 {[%clk 0:00:05]}  Kf3 {[%clk 0:00:16]} 54. Kf5 {[%clk 0:00:06]}  e4 {[%clk 0:00:15]} 55. Rd2 {[%clk 0:00:05]}  Ra5+ {[%clk 0:00:15]} 56. Ke6 {[%clk 0:00:05]}  e3 {[%clk 0:00:15]} 57. fxe3 {[%clk 0:00:05]}  Kxe3 {[%clk 0:00:16]} 58. Rd8 {[%clk 0:00:03]}  Rg5 {[%clk 0:00:15]} 59. Kf6 {[%clk 0:00:03]}  Rxg3 {[%clk 0:00:15]} 60. Re8+ {[%clk 0:00:03]}  Kf2 {[%clk 0:00:15]} 61. Re5 {[%clk 0:00:03]}  Rf3+ {[%clk 0:00:16]} 62. Rf5 {[%clk 0:00:04]}  Rxf5+ {[%clk 0:00:16]} 63. Kxf5 {[%clk 0:00:05]} 1/2-1/2


[Site "https://www.chess.com"]

[Event "Titled Tuesday Blitz October 12 2021"]
[White "Yoo, Christopher Woojin"]
[Black "Tologon tegin, Semetei"]
[WhiteFideId "30909694"]
[BlackFideId "13800574"]
[WhiteElo "2105"]
[BlackElo "2224"]
[Result "1-0"]
[Round "10"]
[TimeControl "180+1"]
[Date "2021.10.12"]
[WhiteClock "0:01:56"]
[BlackClock "0:00:32"]

1. e4 {[%clk 0:03:00]}  c5 {[%clk 0:02:59]} 2. Nf3 {[%clk 0:03:01]}  d6 {[%clk 0:02:58]} 3. d4 {[%clk 0:03:01]}  cxd4 {[%clk 0:02:59]} 4. Nxd4 {[%clk 0:03:02]}  Nf6 {[%clk 0:02:59]} 5. Nc3 {[%clk 0:03:02]}  g6 {[%clk 0:03:00]} 6. Bg5 {[%clk 0:02:59]}  Bg7 {[%clk 0:03:00]} 7. Bb5+ {[%clk 0:03:00]}  Bd7 {[%clk 0:02:57]} 8. Qe2 {[%clk 0:03:00]}  O-O {[%clk 0:02:57]} 9. O-O-O {[%clk 0:03:00]}  a6 {[%clk 0:02:56]} 10. Bxd7 {[%clk 0:02:59]}  Nbxd7 {[%clk 0:02:56]} 11. f4 {[%clk 0:03:00]}  Qa5 {[%clk 0:02:52]} 12. Nb3 {[%clk 0:02:54]}  Qc7 {[%clk 0:02:50]} 13. Rhe1 {[%clk 0:02:54]}  e5 {[%clk 0:02:40]} 14. f5 {[%clk 0:02:48]}  h6 {[%clk 0:02:33]} 15. Bh4 {[%clk 0:02:44]}  b5 {[%clk 0:02:22]} 16. Rd3 {[%clk 0:02:44]}  Rac8 {[%clk 0:02:20]} 17. Red1 {[%clk 0:02:43]}  b4 {[%clk 0:02:16]} 18. Nd5 {[%clk 0:02:43]}  Nxd5 {[%clk 0:02:16]} 19. Rxd5 {[%clk 0:02:44]}  g5 {[%clk 0:01:48]} 20. Rxd6 {[%clk 0:02:38]}  Nc5 {[%clk 0:01:46]} 21. Bf2 {[%clk 0:02:25]}  Nxb3+ {[%clk 0:01:46]} 22. axb3 {[%clk 0:02:26]}  a5 {[%clk 0:01:34]} 23. Rd7 {[%clk 0:02:25]}  Qb8 {[%clk 0:01:27]} 24. R1d6 {[%clk 0:02:06]}  Rfd8 {[%clk 0:01:24]} 25. Qd3 {[%clk 0:02:05]}  Rxd7 {[%clk 0:01:21]} 26. Rxd7 {[%clk 0:02:06]}  Qa8 {[%clk 0:01:11]} 27. Qd5 {[%clk 0:02:01]}  Qxd5 {[%clk 0:01:09]} 28. Rxd5 {[%clk 0:02:02]}  Ra8 {[%clk 0:01:07]} 29. Bb6 {[%clk 0:02:00]}  a4 {[%clk 0:01:06]} 30. bxa4 {[%clk 0:01:58]}  Rxa4 {[%clk 0:01:07]} 31. Ra5 {[%clk 0:01:58]}  Rxa5 {[%clk 0:01:05]} 32. Bxa5 {[%clk 0:01:59]}  Bf8 {[%clk 0:01:06]} 33. Kd2 {[%clk 0:01:59]}  h5 {[%clk 0:00:51]} 34. Kd3 {[%clk 0:01:59]}  h4 {[%clk 0:00:48]} 35. h3 {[%clk 0:01:59]}  Kh7 {[%clk 0:00:46]} 36. Kc4 {[%clk 0:01:58]}  Kh6 {[%clk 0:00:42]} 37. Bxb4 {[%clk 0:01:58]}  Bg7 {[%clk 0:00:42]} 38. Bc5 {[%clk 0:01:56]}  Kh5 {[%clk 0:00:41]} 39. b4 {[%clk 0:01:56]}  g4 {[%clk 0:00:41]} 40. b5 {[%clk 0:01:56]}  gxh3 {[%clk 0:00:31]} 41. gxh3 {[%clk 0:01:57]}  Kg5 {[%clk 0:00:32]} 42. b6 {[%clk 0:01:56]} 1-0


[Site "https://www.chess.com"]

[Event "Titled Tuesday Blitz October 12 2021"]
[White "Zaitsev, Alexander"]
[Black "Begmuratov, Khumoyun"]
[WhiteFideId "4164490"]
[BlackFideId "14210207"]
[WhiteElo "2317"]
[BlackElo "1948"]
[Result "1-0"]
[Round "10"]
[TimeControl "180+1"]
[Date "2021.10.12"]
[WhiteClock "0:00:09"]
[BlackClock "0:00:16"]

1. e4 {[%clk 0:03:00]}  e5 {[%clk 0:02:58]} 2. Nc3 {[%clk 0:03:00]}  Nc6 {[%clk 0:02:58]} 3. Bc4 {[%clk 0:03:00]}  Nf6 {[%clk 0:02:57]} 4. d3 {[%clk 0:03:01]}  g6 {[%clk 0:02:54]} 5. f4 {[%clk 0:02:59]}  Bg7 {[%clk 0:02:53]} 6. Nf3 {[%clk 0:02:59]}  d6 {[%clk 0:02:52]} 7. fxe5 {[%clk 0:02:58]}  Nxe5 {[%clk 0:02:51]} 8. Nxe5 {[%clk 0:02:57]}  dxe5 {[%clk 0:02:52]} 9. O-O {[%clk 0:02:56]}  O-O {[%clk 0:02:51]} 10. Bg5 {[%clk 0:02:49]}  h6 {[%clk 0:02:09]} 11. Bxf6 {[%clk 0:02:42]}  Bxf6 {[%clk 0:02:10]} 12. Qf3 {[%clk 0:02:41]}  Kg7 {[%clk 0:01:59]} 13. Nd5 {[%clk 0:02:20]}  Bg5 {[%clk 0:01:58]} 14. Qg3 {[%clk 0:01:57]}  c6 {[%clk 0:01:55]} 15. Nc3 {[%clk 0:01:27]}  Qb6+ {[%clk 0:01:48]} 16. Kh1 {[%clk 0:01:24]}  Bf4 {[%clk 0:01:46]} 17. Rxf4 {[%clk 0:01:07]}  exf4 {[%clk 0:01:46]} 18. Qxf4 {[%clk 0:01:07]}  f6 {[%clk 0:01:38]} 19. Rf1 {[%clk 0:00:54]}  Qxb2 {[%clk 0:01:25]} 20. Qd6 {[%clk 0:00:44]}  Bg4 {[%clk 0:01:13]} 21. e5 {[%clk 0:00:24]}  Qxc3 {[%clk 0:00:55]} 22. Qe7+ {[%clk 0:00:19]}  Kh8 {[%clk 0:00:55]} 23. exf6 {[%clk 0:00:08]}  Rxf6 {[%clk 0:00:54]} 24. Qxf6+ {[%clk 0:00:07]}  Qxf6 {[%clk 0:00:54]} 25. Rxf6 {[%clk 0:00:08]}  Kg7 {[%clk 0:00:54]} 26. Rf4 {[%clk 0:00:08]}  Re8 {[%clk 0:00:53]} 27. h3 {[%clk 0:00:07]}  Be6 {[%clk 0:00:52]} 28. Bxe6 {[%clk 0:00:05]}  Rxe6 {[%clk 0:00:53]} 29. Rd4 {[%clk 0:00:05]}  Re7 {[%clk 0:00:50]} 30. Kg1 {[%clk 0:00:05]}  Kf6 {[%clk 0:00:50]} 31. Kf2 {[%clk 0:00:06]}  g5 {[%clk 0:00:46]} 32. h4 {[%clk 0:00:04]}  Kf5 {[%clk 0:00:45]} 33. hxg5 {[%clk 0:00:04]}  hxg5 {[%clk 0:00:46]} 34. g4+ {[%clk 0:00:05]}  Kf6 {[%clk 0:00:45]} 35. Kf3 {[%clk 0:00:05]}  Rh7 {[%clk 0:00:45]} 36. Rd6+ {[%clk 0:00:04]}  Ke5 {[%clk 0:00:26]} 37. Rg6 {[%clk 0:00:04]}  Rh2 {[%clk 0:00:26]} 38. Rxg5+ {[%clk 0:00:04]}  Kf6 {[%clk 0:00:26]} 39. Rf5+ {[%clk 0:00:04]}  Kg6 {[%clk 0:00:26]} 40. Rc5 {[%clk 0:00:05]}  Rh1 {[%clk 0:00:24]} 41. a4 {[%clk 0:00:05]}  Ra1 {[%clk 0:00:25]} 42. a5 {[%clk 0:00:05]}  a6 {[%clk 0:00:24]} 43. Kf4 {[%clk 0:00:06]}  Ra4+ {[%clk 0:00:24]} 44. Kf3 {[%clk 0:00:05]}  Kf6 {[%clk 0:00:23]} 45. g5+ {[%clk 0:00:06]}  Kg6 {[%clk 0:00:23]} 46. c3 {[%clk 0:00:06]}  Rh4 {[%clk 0:00:22]} 47. d4 {[%clk 0:00:06]}  Rh8 {[%clk 0:00:20]} 48. Ke4 {[%clk 0:00:06]}  Re8+ {[%clk 0:00:19]} 49. Re5 {[%clk 0:00:07]}  Rf8 {[%clk 0:00:18]} 50. Kd3 {[%clk 0:00:07]}  Rf1 {[%clk 0:00:17]} 51. Kc4 {[%clk 0:00:07]}  Rb1 {[%clk 0:00:17]} 52. Kc5 {[%clk 0:00:07]}  Rb3 {[%clk 0:00:17]} 53. c4 {[%clk 0:00:07]}  Rb2 {[%clk 0:00:16]} 54. Kd6 {[%clk 0:00:07]}  Rb4 {[%clk 0:00:17]} 55. Rc5 {[%clk 0:00:05]}  Rb2 {[%clk 0:00:16]} 56. Kc7 {[%clk 0:00:05]}  Kf7 {[%clk 0:00:16]} 57. d5 {[%clk 0:00:06]}  cxd5 {[%clk 0:00:15]} 58. cxd5 {[%clk 0:00:06]}  Rd2 {[%clk 0:00:15]} 59. d6 {[%clk 0:00:06]}  Ke6 {[%clk 0:00:16]} 60. Rc1 {[%clk 0:00:05]}  Rd5 {[%clk 0:00:09]} 61. Re1+ {[%clk 0:00:05]}  Kf7 {[%clk 0:00:10]} 62. d7 {[%clk 0:00:06]}  Rc5+ {[%clk 0:00:09]} 63. Kb8 {[%clk 0:00:06]}  Rd5 {[%clk 0:00:09]} 64. Kc7 {[%clk 0:00:06]}  Rc5+ {[%clk 0:00:09]} 65. Kxb7 {[%clk 0:00:06]}  Rd5 {[%clk 0:00:08]} 66. Kc6 {[%clk 0:00:07]}  Rd2 {[%clk 0:00:08]} 67. Re8 {[%clk 0:00:07]}  Rc2+ {[%clk 0:00:09]} 68. Kb6 {[%clk 0:00:07]}  Rb2+ {[%clk 0:00:09]} 69. Kxa6 {[%clk 0:00:08]}  Rc2 {[%clk 0:00:09]} 70. d8=Q {[%clk 0:00:07]}  Rc6+ {[%clk 0:00:10]} 71. Qb6 {[%clk 0:00:06]}  Rxb6+ {[%clk 0:00:09]} 72. axb6 {[%clk 0:00:05]}  Kxe8 {[%clk 0:00:10]} 73. b7 {[%clk 0:00:06]}  Kd7 {[%clk 0:00:11]} 74. b8=Q {[%clk 0:00:07]}  Ke6 {[%clk 0:00:11]} 75. Qf8 {[%clk 0:00:07]}  Kd5 {[%clk 0:00:12]} 76. Qf6 {[%clk 0:00:08]}  Ke4 {[%clk 0:00:13]} 77. g6 {[%clk 0:00:08]}  Kd5 {[%clk 0:00:13]} 78. g7 {[%clk 0:00:09]}  Kc4 {[%clk 0:00:14]} 79. g8=Q+ {[%clk 0:00:10]}  Kd3 {[%clk 0:00:15]} 80. Qg4 {[%clk 0:00:10]}  Kc2 {[%clk 0:00:16]} 81. Qff3 {[%clk 0:00:09]} 1-0


[Site "https://www.chess.com"]

[Event "Titled Tuesday Blitz October 12 2021"]
[White "Zarnicki, Pablo"]
[Black "Gurevich, Dmitry"]
[WhiteFideId "100137"]
[BlackFideId "2000407"]
[WhiteElo "2467"]
[BlackElo "2506"]
[Result "1/2-1/2"]
[Round "10"]
[TimeControl "180+1"]
[Date "2021.10.12"]
[WhiteClock "0:00:19"]
[BlackClock "0:00:30"]

1. e4 {[%clk 0:03:00]}  c5 {[%clk 0:02:27]} 2. Nf3 {[%clk 0:03:00]}  d6 {[%clk 0:02:26]} 3. Bb5+ {[%clk 0:02:59]}  Bd7 {[%clk 0:02:26]} 4. Bxd7+ {[%clk 0:02:59]}  Qxd7 {[%clk 0:02:26]} 5. c4 {[%clk 0:02:58]}  Nc6 {[%clk 0:02:26]} 6. Nc3 {[%clk 0:02:57]}  Nf6 {[%clk 0:02:26]} 7. d4 {[%clk 0:02:57]}  cxd4 {[%clk 0:02:26]} 8. Nxd4 {[%clk 0:02:57]}  e6 {[%clk 0:02:27]} 9. O-O {[%clk 0:02:54]}  Be7 {[%clk 0:02:27]} 10. Nde2 {[%clk 0:02:49]}  O-O {[%clk 0:02:27]} 11. b3 {[%clk 0:02:48]}  Rac8 {[%clk 0:02:25]} 12. Bb2 {[%clk 0:02:48]}  Rfd8 {[%clk 0:02:26]} 13. f4 {[%clk 0:02:44]}  b6 {[%clk 0:02:25]} 14. Kh1 {[%clk 0:02:42]}  Qb7 {[%clk 0:02:25]} 15. Qd3 {[%clk 0:02:37]}  a6 {[%clk 0:02:25]} 16. a4 {[%clk 0:02:25]}  Nb4 {[%clk 0:02:12]} 17. Qf3 {[%clk 0:02:24]}  d5 {[%clk 0:01:52]} 18. exd5 {[%clk 0:01:53]}  exd5 {[%clk 0:01:52]} 19. Nd4 {[%clk 0:01:46]}  Qd7 {[%clk 0:01:48]} 20. Rad1 {[%clk 0:01:34]}  Qg4 {[%clk 0:01:33]} 21. Qxg4 {[%clk 0:01:32]}  Nxg4 {[%clk 0:01:32]} 22. Nf5 {[%clk 0:01:24]}  Bf6 {[%clk 0:01:31]} 23. h3 {[%clk 0:01:21]}  g6 {[%clk 0:01:26]} 24. hxg4 {[%clk 0:00:44]}  gxf5 {[%clk 0:01:26]} 25. g5 {[%clk 0:00:44]}  Bg7 {[%clk 0:01:12]} 26. Rf3 {[%clk 0:00:39]}  dxc4 {[%clk 0:01:08]} 27. Rxd8+ {[%clk 0:00:38]}  Rxd8 {[%clk 0:01:07]} 28. bxc4 {[%clk 0:00:39]}  Rd2 {[%clk 0:01:04]} 29. Ba1 {[%clk 0:00:33]}  Rc2 {[%clk 0:01:00]} 30. Kh2 {[%clk 0:00:27]}  f6 {[%clk 0:00:59]} 31. Nd5 {[%clk 0:00:25]}  Nxd5 {[%clk 0:00:55]} 32. cxd5 {[%clk 0:00:26]}  fxg5 {[%clk 0:00:46]} 33. Bxg7 {[%clk 0:00:26]}  Kxg7 {[%clk 0:00:46]} 34. fxg5 {[%clk 0:00:23]}  Kg6 {[%clk 0:00:46]} 35. Rd3 {[%clk 0:00:20]}  Rc7 {[%clk 0:00:45]} 36. d6 {[%clk 0:00:18]}  Rd7 {[%clk 0:00:45]} 37. Kg3 {[%clk 0:00:18]}  Kxg5 {[%clk 0:00:45]} 38. Rd5 {[%clk 0:00:19]}  b5 {[%clk 0:00:43]} 39. axb5 {[%clk 0:00:18]}  axb5 {[%clk 0:00:43]} 40. Kf3 {[%clk 0:00:18]}  b4 {[%clk 0:00:39]} 41. g4 {[%clk 0:00:18]}  Kf6 {[%clk 0:00:35]} 42. Rxf5+ {[%clk 0:00:18]}  Ke6 {[%clk 0:00:34]} 43. Rb5 {[%clk 0:00:18]}  Rxd6 {[%clk 0:00:34]} 44. Rxb4 {[%clk 0:00:18]}  Kf6 {[%clk 0:00:34]} 45. Kf4 {[%clk 0:00:18]}  Kg6 {[%clk 0:00:33]} 46. Re4 {[%clk 0:00:17]}  Rf6+ {[%clk 0:00:32]} 47. Kg3 {[%clk 0:00:17]}  Rd6 {[%clk 0:00:31]} 48. Kh4 {[%clk 0:00:17]}  h6 {[%clk 0:00:32]} 49. Re5 {[%clk 0:00:18]}  Rc6 {[%clk 0:00:32]} 50. Rd5 {[%clk 0:00:18]}  Re6 {[%clk 0:00:32]} 51. Rd4 {[%clk 0:00:18]}  Rc6 {[%clk 0:00:32]} 52. Kg3 {[%clk 0:00:18]}  Rf6 {[%clk 0:00:31]} 53. Re4 {[%clk 0:00:18]}  Rd6 {[%clk 0:00:31]} 54. Re3 {[%clk 0:00:18]}  Rf6 {[%clk 0:00:31]} 55. Rb3 {[%clk 0:00:18]}  Rd6 {[%clk 0:00:31]} 56. Rb8 {[%clk 0:00:18]}  Rf6 {[%clk 0:00:31]} 57. Rg8+ {[%clk 0:00:18]}  Kf7 {[%clk 0:00:30]} 58. Rh8 {[%clk 0:00:19]}  Kg7 {[%clk 0:00:31]} 59. Rd8 {[%clk 0:00:19]}  Kg6 {[%clk 0:00:31]} 60. Kh4 {[%clk 0:00:19]}  Rf1 {[%clk 0:00:29]} 61. Rd6+ {[%clk 0:00:18]}  Kg7 {[%clk 0:00:29]} 62. Kg3 {[%clk 0:00:18]}  Rg1+ {[%clk 0:00:29]} 63. Kf4 {[%clk 0:00:18]}  Rf1+ {[%clk 0:00:29]} 64. Ke4 {[%clk 0:00:18]}  Re1+ {[%clk 0:00:29]} 65. Kf5 {[%clk 0:00:18]}  Rf1+ {[%clk 0:00:29]} 66. Ke5 {[%clk 0:00:19]}  Re1+ {[%clk 0:00:29]} 67. Kf4 {[%clk 0:00:19]}  Rf1+ {[%clk 0:00:29]} 68. Kg3 {[%clk 0:00:19]}  Rg1+ {[%clk 0:00:29]} 69. Kf3 {[%clk 0:00:19]}  Rf1+ {[%clk 0:00:29]} 70. Kg2 {[%clk 0:00:20]}  Rf6 {[%clk 0:00:29]} 71. Rxf6 {[%clk 0:00:17]}  Kxf6 {[%clk 0:00:29]} 72. Kg3 {[%clk 0:00:18]}  Kg5 {[%clk 0:00:29]} 73. Kh3 {[%clk 0:00:18]}  Kg6 {[%clk 0:00:30]} 74. Kh4 {[%clk 0:00:17]}  Kf6 {[%clk 0:00:30]} 75. Kh5 {[%clk 0:00:17]}  Kg7 {[%clk 0:00:30]} 76. g5 {[%clk 0:00:18]}  hxg5 {[%clk 0:00:30]} 77. Kxg5 {[%clk 0:00:19]} 1/2-1/2


[Site "https://www.chess.com"]

[Event "Titled Tuesday Blitz October 12 2021"]
[White "Abdyzhapar, Asylbek"]
[Black "Tregubov, Pavel V."]
[WhiteFideId "13800337"]
[BlackFideId "4115341"]
[WhiteElo "2383"]
[BlackElo "2423"]
[Result "1/2-1/2"]
[Round "11"]
[TimeControl "180+1"]
[Date "2021.10.12"]
[WhiteClock "0:00:16"]
[BlackClock "0:00:14"]

1. c4 {[%clk 0:03:00]}  c5 {[%clk 0:02:59]} 2. g3 {[%clk 0:03:01]}  Nf6 {[%clk 0:02:58]} 3. Bg2 {[%clk 0:03:01]}  d5 {[%clk 0:02:58]} 4. cxd5 {[%clk 0:03:00]}  Nxd5 {[%clk 0:02:59]} 5. Nf3 {[%clk 0:03:00]}  Nc6 {[%clk 0:02:59]} 6. O-O {[%clk 0:03:01]}  e5 {[%clk 0:02:58]} 7. Nc3 {[%clk 0:03:01]}  Nc7 {[%clk 0:02:59]} 8. d3 {[%clk 0:03:01]}  Be7 {[%clk 0:02:58]} 9. Nd2 {[%clk 0:02:58]}  O-O {[%clk 0:02:49]} 10. f4 {[%clk 0:02:56]}  exf4 {[%clk 0:02:48]} 11. gxf4 {[%clk 0:02:56]}  Ne6 {[%clk 0:02:37]} 12. Nde4 {[%clk 0:02:56]}  Ned4 {[%clk 0:02:36]} 13. e3 {[%clk 0:02:54]}  Nf5 {[%clk 0:02:36]} 14. Nd5 {[%clk 0:02:52]}  Be6 {[%clk 0:02:34]} 15. Nxe7+ {[%clk 0:02:51]}  Qxe7 {[%clk 0:02:34]} 16. Qc2 {[%clk 0:02:51]}  Nb4 {[%clk 0:02:27]} 17. Qxc5 {[%clk 0:02:40]}  Nxd3 {[%clk 0:02:27]} 18. Qxe7 {[%clk 0:02:40]}  Nxe7 {[%clk 0:02:28]} 19. Ng5 {[%clk 0:02:38]}  Bd5 {[%clk 0:02:21]} 20. e4 {[%clk 0:02:36]}  Bc6 {[%clk 0:02:20]} 21. Bd2 {[%clk 0:02:28]}  h6 {[%clk 0:02:20]} 22. Nh3 {[%clk 0:02:27]}  Nxb2 {[%clk 0:02:18]} 23. f5 {[%clk 0:02:26]}  Rfe8 {[%clk 0:02:05]} 24. f6 {[%clk 0:02:25]}  Ng6 {[%clk 0:01:59]} 25. fxg7 {[%clk 0:02:25]}  Bxe4 {[%clk 0:01:55]} 26. Bxh6 {[%clk 0:02:24]}  Bxg2 {[%clk 0:01:50]} 27. Kxg2 {[%clk 0:02:24]}  Nd3 {[%clk 0:01:51]} 28. Rf5 {[%clk 0:02:14]}  Re2+ {[%clk 0:01:48]} 29. Kh1 {[%clk 0:02:13]}  Rae8 {[%clk 0:01:44]} 30. Raf1 {[%clk 0:02:10]}  R8e7 {[%clk 0:01:43]} 31. Ng5 {[%clk 0:02:09]}  Nde5 {[%clk 0:01:33]} 32. Rc1 {[%clk 0:02:00]}  Re8 {[%clk 0:01:27]} 33. Rcf1 {[%clk 0:01:52]}  Ng4 {[%clk 0:01:20]} 34. Nxf7 {[%clk 0:01:41]}  Rxh2+ {[%clk 0:01:14]} 35. Kg1 {[%clk 0:01:42]}  Rxh6 {[%clk 0:01:04]} 36. Rg5 {[%clk 0:01:26]}  Kxg7 {[%clk 0:00:50]} 37. Rxg4 {[%clk 0:01:24]}  Rh4 {[%clk 0:00:49]} 38. Rg3 {[%clk 0:01:23]}  Rf8 {[%clk 0:00:46]} 39. Ne5 {[%clk 0:01:18]}  Rxf1+ {[%clk 0:00:44]} 40. Kxf1 {[%clk 0:01:18]}  Rf4+ {[%clk 0:00:43]} 41. Kg1 {[%clk 0:01:14]}  Rf6 {[%clk 0:00:44]} 42. Nd3 {[%clk 0:01:08]}  Rc6 {[%clk 0:00:39]} 43. Nb4 {[%clk 0:01:05]}  Rd6 {[%clk 0:00:38]} 44. Ra3 {[%clk 0:01:03]}  a6 {[%clk 0:00:37]} 45. Rb3 {[%clk 0:01:03]}  Nf4 {[%clk 0:00:37]} 46. Kf2 {[%clk 0:01:03]}  Kf6 {[%clk 0:00:36]} 47. Ke3 {[%clk 0:01:03]}  Ke5 {[%clk 0:00:35]} 48. Nc2 {[%clk 0:01:00]}  b5 {[%clk 0:00:30]} 49. Ne1 {[%clk 0:00:56]}  Nd5+ {[%clk 0:00:29]} 50. Ke2 {[%clk 0:00:56]}  Nb6 {[%clk 0:00:27]} 51. Nf3+ {[%clk 0:00:54]}  Kd5 {[%clk 0:00:27]} 52. Rd3+ {[%clk 0:00:52]}  Kc5 {[%clk 0:00:28]} 53. Rxd6 {[%clk 0:00:52]}  Kxd6 {[%clk 0:00:28]} 54. Kd3 {[%clk 0:00:52]}  Kc5 {[%clk 0:00:29]} 55. Kc2 {[%clk 0:00:52]}  Kb4 {[%clk 0:00:28]} 56. Nd4 {[%clk 0:00:48]}  Ka3 {[%clk 0:00:27]} 57. Kb1 {[%clk 0:00:48]}  Nd5 {[%clk 0:00:27]} 58. Nc2+ {[%clk 0:00:48]}  Ka4 {[%clk 0:00:27]} 59. Kb2 {[%clk 0:00:48]}  a5 {[%clk 0:00:27]} 60. a3 {[%clk 0:00:46]}  Nb6 {[%clk 0:00:25]} 61. Kb1 {[%clk 0:00:22]}  Nc4 {[%clk 0:00:25]} 62. Ka2 {[%clk 0:00:22]}  Nd2 {[%clk 0:00:16]} 63. Nd4 {[%clk 0:00:20]}  Nc4 {[%clk 0:00:14]} 64. Nc2 {[%clk 0:00:17]}  b4 {[%clk 0:00:14]} 65. axb4 {[%clk 0:00:16]}  axb4 {[%clk 0:00:14]} 66. Nxb4 {[%clk 0:00:16]} 1/2-1/2


[Site "https://www.chess.com"]